[Event "2nd Namma Bengaluru Open-B 2025"]
[Site "Bengaluru"]
[Date "2025.04.11"]
[Round "5.1"]
[White "Pournami S"]
[Black "Nayak, Biswajit"]
[Result "0-1"]
[Annotator "NA"]
[ECO "E13"]
[WhiteElo "1770"]
[BlackElo "1979"]
[PlyCount "58"]
[EventDate "2025.04.10"]
[EventType "swiss"]
[EventCountry "IND"]
[SourceTitle "playchess.com"]
[Source "ChessBase"]
[SourceQuality "1"]
[TimeControl "3600+30"]

1. d4 {[%emt 0:00:04]} Nf6 {[%emt 0:00:17]} 2. c4 {[%emt 0:00:09]} e6 {[%emt 0:00:44]} 3. Nf3 {[%emt 0:00:10]} b6 {[%emt 0:01:04]} 4. Nc3 {[%emt 0:00:41]} Bb7 {[%emt 0:00:15]} 5. Bg5 {[%emt 0:01:29]} Bb4 {[%emt 0:00:52]} 6. e3 {[%emt 0:00:33]} h6 {[%emt 0:01:35]} 7. Bh4 {[%emt 0:00:14]} g5 {[%emt 0:01:16]} 8. Bg3 {[%emt 0:00:08]} Ne4 {[%emt 0:00:08]} 9. Qc2 {[%emt 0:02:12]} Bxc3+ {[%emt 0:02:43]} 10. bxc3 {[%emt 0:00:11]} d6 {[%emt 0:00:25]} 11. Nd2 {[%emt 0:03:26]} Nxg3 {[%emt 0:04:16]} 12. hxg3 {[%emt 0:03:42]} Qe7 {[%emt 0:03:37]} 13. e4 {[%emt 0:02:44]} c5 {[%emt 0:03:49]} 14. Be2 {[%emt 0:02:10]} Nd7 {[%emt 0:01:44]} 15. d5 {[%emt 0:12:46]} Kd8 {[%emt 0:01:20]} 16. f3 {[%emt 0:03:40]} Kc7 {[%emt 0:00:43]} 17. Kf2 {[%emt 0:00:49]} h5 {[%emt 0:00:49]} 18. Rh2 {[%emt 0:18:33]} h4 {[%emt 0:03:24]} 19. g4 {[%emt 0:01:12]} Qf6 {[%emt 0:00:55]} 20. Rah1 {[%emt 0:02:29]} Ne5 {[%emt 0:01:26]} 21. Ke1 {[%emt 0:00:57]} Rhe8 {[%emt 0:00:51]} 22. Kd1 {[%emt 0:05:43]} Ng6 {[%emt 0:04:08]} 23. Bf1 {[%emt 0:02:02]} Qe5 {[%emt 0:00:26]} 24. Kc1 {[%emt 0:01:10]} Re7 {[%emt 0:02:28]} 25. Bd3 {[%emt 0:03:45]} Rb8 {[%emt 0:05:46]} 26. a4 {[%emt 0:01:18]} Bc8 {[%emt 0:00:06]} 27. Kb2 {[%emt 0:00:50]} Nf4 {[%emt 0:00:17]} 28. Ka3 {[%emt 0:00:42]} a6 {[%emt 0:00:58]} 29. Rb1 {[%emt 0:00:26]} Nxd3 {[%emt 0:00:17]} 0-1

[Event "2nd Namma Bengaluru Open-B 2025"]
[Site "Bengaluru"]
[Date "2025.04.11"]
[Round "5.2"]
[White "Atharv Venkatesh"]
[Black "Afreed T Khan"]
[Result "0-1"]
[Annotator "NA"]
[ECO "C47"]
[WhiteElo "1768"]
[BlackElo "1921"]
[PlyCount "132"]
[EventDate "2025.04.10"]
[EventType "swiss"]
[EventCountry "IND"]
[SourceTitle "playchess.com"]
[Source "ChessBase"]
[SourceQuality "1"]
[TimeControl "3600+30"]

1. e4 {[%emt 0:00:03]} e5 {[%emt 0:01:47]} 2. Nf3 {[%emt 0:00:03]} Nc6 {[%emt 0:00:06]} 3. Nc3 {[%emt 0:00:09]} Nf6 {[%emt 0:00:06]} 4. d4 {[%emt 0:00:14]} exd4 {[%emt 0:00:40]} 5. Nxd4 {[%emt 0:00:07]} Bb4 {[%emt 0:00:55]} 6. Nxc6 {[%emt 0:00:09]} bxc6 {[%emt 0:00:08]} 7. Bd3 {[%emt 0:00:11]} O-O {[%emt 0:01:04]} 8. O-O {[%emt 0:00:09]} d5 {[%emt 0:00:51]} 9. exd5 {[%emt 0:00:11]} cxd5 {[%emt 0:00:48]} 10. Bg5 {[%emt 0:00:13]} Be6 {[%emt 0:00:51]} 11. Qf3 {[%emt 0:00:38]} Be7 {[%emt 0:00:46]} 12. h3 {[%emt 0:00:31]} h6 {[%emt 0:00:13]} 13. Bh4 {[%emt 0:00:48]} Qd7 {[%emt 0:01:21]} 14. Rfd1 {[%emt 0:05:15]} Rfd8 {[%emt 0:09:28]} 15. Ne2 {[%emt 0:02:48]} Rab8 {[%emt 0:12:32]} 16. Rab1 {[%emt 0:01:38]} Qa4 {[%emt 0:02:18]} 17. Bg3 {[%emt 0:01:01]} Bd6 {[%emt 0:02:50]} 18. Nc3 {[%emt 0:09:11]} Qd7 {[%emt 0:04:14]} 19. a4 {[%emt 0:08:10]} Bxg3 {[%emt 0:02:10]} 20. Qxg3 {[%emt 0:00:18]} c5 {[%emt 0:00:48]} 21. b3 {[%emt 0:08:15]} Qe7 {[%emt 0:07:10]} 22. Re1 {[%emt 0:04:09]} Nh5 {[%emt 0:05:20]} 23. Qe5 {[%emt 0:02:37]} Qg5 {[%emt 0:00:33]} 24. Qxg5 {[%emt 0:01:51]} hxg5 {[%emt 0:00:03]} 25. Re5 {[%emt 0:04:09]} c4 {[%emt 0:02:51]} 26. Bf1 {[%emt 0:01:46]} d4 {[%emt 0:03:21]} 27. Nb5 {[%emt 0:06:11]} a6 {[%emt 0:01:32]} 28. Nc7 {[%emt 0:01:22]} d3 {[%emt 0:01:11]} 29. cxd3 {[%emt 0:00:41]} Rxb3 {[%emt 0:00:13]} 30. Rxb3 {[%emt 0:03:14]} cxb3 {[%emt 0:00:06]} 31. Re2 {[%emt 0:01:59]} Nf4 {[%emt 0:02:50]} 32. Rb2 {[%emt 0:00:35]} Rd4 {[%emt 0:04:04]} 33. g3 {[%emt 0:04:10]} Nd5 {[%emt 0:00:03]} 34. Nxe6 {[%emt 0:00:36]} fxe6 {[%emt 0:00:02]} 35. Rxb3 {[%emt 0:00:24]} Rxa4 {[%emt 0:00:03]} 36. Rb8+ {[%emt 0:00:21]} Kf7 {[%emt 0:00:11]} 37. Bg2 {[%emt 0:01:22]} Nc3 {[%emt 0:00:15]} 38. Rc8 {[%emt 0:00:43]} Ne2+ {[%emt 0:00:38]} 39. Kh2 {[%emt 0:00:38]} Nd4 {[%emt 0:00:57]} 40. Rc4 {[%emt 0:00:28]} Rxc4 {[%emt 0:00:26]} 41. dxc4 {[%emt 0:00:06]} a5 {[%emt 0:00:10]} 42. Bf1 {[%emt 0:01:23]} a4 {[%emt 0:00:06]} 43. c5 {[%emt 0:00:29]} a3 {[%emt 0:01:29]} 44. Bc4 {[%emt 0:00:09]} Ke7 {[%emt 0:00:44]} 45. g4 {[%emt 0:00:52]} Nf3+ {[%emt 0:00:26]} 46. Kg3 {[%emt 0:01:58]} Nd2 {[%emt 0:00:22]} 47. Ba2 {[%emt 0:00:29]} Ne4+ {[%emt 0:00:04]} 48. Kf3 {[%emt 0:00:10]} Nc3 {[%emt 0:00:13]} 49. Bb3 {[%emt 0:00:30]} a2 {[%emt 0:00:02]} 50. Bxa2 {[%emt 0:00:08]} Nxa2 {[%emt 0:00:03]} 51. Ke4 {[%emt 0:00:11]} Nc3+ {[%emt 0:00:17]} 52. Ke5 {[%emt 0:00:15]} Nd5 {[%emt 0:00:48]} 53. c6 {[%emt 0:00:40]} Nb4 {[%emt 0:01:32]} 54. c7 {[%emt 0:00:43]} Nc6+ {[%emt 0:00:03]} 55. Ke4 {[%emt 0:01:02]} Kd7 {[%emt 0:00:07]} 56. f4 {[%emt 0:00:25]} gxf4 {[%emt 0:00:03]} 57. Kxf4 {[%emt 0:00:16]} Kxc7 {[%emt 0:00:04]} 58. h4 {[%emt 0:00:27]} Kd6 {[%emt 0:00:14]} 59. h5 {[%emt 0:00:32]} Ke7 {[%emt 0:00:36]} 60. g5 {[%emt 0:00:17]} Kf7 {[%emt 0:00:18]} 61. Ke4 {[%emt 0:00:45]} Ne7 {[%emt 0:01:47]} 62. Kd4 {[%emt 0:01:17]} Nf5+ {[%emt 0:00:09]} 63. Ke5 {[%emt 0:00:37]} Ke7 {[%emt 0:00:09]} 64. Kf4 {[%emt 0:00:26]} Kd6 {[%emt 0:00:07]} 65. Kf3 {[%emt 0:00:36]} Ke5 {[%emt 0:00:14]} 66. Kg4 {[%emt 0:00:21]} Ke4 {[%emt 0:00:05]} 0-1

[Event "2nd Namma Bengaluru Open-B 2025"]
[Site "Bengaluru"]
[Date "2025.04.11"]
[Round "5.3"]
[White "Elesh Tripathi"]
[Black "Malla, Nooka Raju"]
[Result "1-0"]
[Annotator "NA"]
[ECO "A30"]
[WhiteElo "1758"]
[BlackElo "1860"]
[PlyCount "81"]
[EventDate "2025.04.10"]
[EventType "swiss"]
[EventCountry "IND"]
[SourceTitle "playchess.com"]
[Source "ChessBase"]
[SourceQuality "1"]
[TimeControl "3600+30"]

1. d4 {[%emt 0:00:01]} Nf6 {[%emt 0:03:04]} 2. g3 {[%emt 0:00:07]} e6 {[%emt 0:00:52]} 3. Bg2 {[%emt 0:00:09]} c5 {[%emt 0:02:14]} 4. Nf3 {[%emt 0:00:43]} a6 {[%emt 0:07:16]} 5. c4 {[%emt 0:01:13]} cxd4 {[%emt 0:08:19]} 6. O-O {[%emt 0:00:23]} Be7 {[%emt 0:00:59]} 7. Nxd4 {[%emt 0:00:12]} O-O {[%emt 0:01:01]} 8. Nc3 {[%emt 0:00:20]} Qc7 {[%emt 0:01:03]} 9. Qb3 {[%emt 0:05:34]} Nc6 {[%emt 0:01:46]} 10. Nxc6 {[%emt 0:01:08]} bxc6 {[%emt 0:00:39]} 11. Rd1 {[%emt 0:09:46]} Rb8 {[%emt 0:02:28]} 12. Qc2 {[%emt 0:00:06]} d5 {[%emt 0:04:23]} 13. Na4 {[%emt 0:03:25]} Rb4 {[%emt 0:04:22]} 14. cxd5 {[%emt 0:01:27]} exd5 {[%emt 0:00:20]} 15. b3 {[%emt 0:00:20]} Rb7 {[%emt 0:07:35]} 16. Bf4 {[%emt 0:00:52]} Bd6 {[%emt 0:01:31]} 17. Bg5 {[%emt 0:00:47]} Be7 {[%emt 0:03:12]} 18. Rac1 {[%emt 0:00:36]} Ba3 {[%emt 0:01:21]} 19. Rb1 {[%emt 0:09:09]} Be7 {[%emt 0:03:43]} 20. Bxf6 {[%emt 0:00:39]} Bxf6 {[%emt 0:00:12]} 21. Rbc1 {[%emt 0:00:09]} Qe7 {[%emt 0:02:25]} 22. Qxc6 {[%emt 0:01:27]} Qxe2 {[%emt 0:01:44]} 23. Bf1 {[%emt 0:00:40]} Qg4 {[%emt 0:02:20]} 24. Bxa6 {[%emt 0:02:09]} Rc7 {[%emt 0:03:35]} 25. Qxc7 {[%emt 0:01:17]} Bxa6 {[%emt 0:00:05]} 26. Qf4 {[%emt 0:00:46]} Qh5 {[%emt 0:00:50]} 27. h4 {[%emt 0:01:15]} Be2 {[%emt 0:00:54]} 28. Rd2 {[%emt 0:01:11]} h6 {[%emt 0:06:17]} 29. Nb6 {[%emt 0:01:57]} Bg5 {[%emt 0:00:00]} 30. hxg5 {[%emt 0:01:00]} hxg5 {[%emt 0:00:00]} 31. g4 {[%emt 0:00:18]} Bxg4 {[%emt 0:00:00]} 32. Qh2 {[%emt 0:00:16]} Bh3 {[%emt 0:00:00]} 33. Nxd5 {[%emt 0:00:37]} Re8 {[%emt 0:00:00]} 34. Rd3 {[%emt 0:06:21]} g4 {[%emt 0:00:00]} 35. Nf4 {[%emt 0:00:58]} Qg5 {[%emt 0:00:13]} 36. Re3 {[%emt 0:00:25]} Rd8 {[%emt 0:00:23]} 37. Qg3 {[%emt 0:00:51]} Qh6 {[%emt 0:00:58]} 38. Nxh3 {[%emt 0:01:03]} gxh3 {[%emt 0:00:07]} 39. Qxh3 {[%emt 0:00:03]} Qg5+ {[%emt 0:00:11]} 40. Qg2 {[%emt 0:00:29]} Qh6 {[%emt 0:00:16]} 41. Rce1 {[%emt 0:00:28]} 1-0

[Event "2nd Namma Bengaluru Open-B 2025"]
[Site "Bengaluru"]
[Date "2025.04.11"]
[Round "5.4"]
[White "Samaksh Ashok"]
[Black "Aditya Dileepraj"]
[Result "0-1"]
[Annotator "NA"]
[ECO "D02"]
[WhiteElo "1858"]
[BlackElo "1746"]
[PlyCount "146"]
[EventDate "2025.04.10"]
[EventType "swiss"]
[EventCountry "IND"]
[SourceTitle "playchess.com"]
[Source "ChessBase"]
[SourceQuality "1"]
[TimeControl "3600+30"]

1. d4 {[%emt 0:02:26]} Nf6 {[%emt 0:00:20]} 2. Nf3 {[%emt 0:00:05]} e6 {[%emt 0:00:11]} 3. g3 {[%emt 0:00:40]} d5 {[%emt 0:00:13]} 4. Bg2 {[%emt 0:00:24]} Nbd7 {[%emt 0:00:22]} 5. O-O {[%emt 0:00:32]} c6 {[%emt 0:00:39]} 6. Nbd2 {[%emt 0:00:58]} Qb6 {[%emt 0:01:20]} 7. c4 {[%emt 0:02:53]} Be7 {[%emt 0:00:16]} 8. b3 {[%emt 0:00:36]} O-O {[%emt 0:00:21]} 9. Bb2 {[%emt 0:00:21]} Rd8 {[%emt 0:00:41]} 10. Qc2 {[%emt 0:01:09]} h6 {[%emt 0:01:08]} 11. Rad1 {[%emt 0:01:08]} Qc7 {[%emt 0:02:28]} 12. Rfe1 {[%emt 0:01:06]} b6 {[%emt 0:00:31]} 13. e4 {[%emt 0:00:59]} Nxe4 {[%emt 0:00:02]} 14. Nxe4 {[%emt 0:00:11]} dxe4 {[%emt 0:00:05]} 15. Qxe4 {[%emt 0:00:41]} Nf6 {[%emt 0:00:34]} 16. Qe2 {[%emt 0:01:12]} Bb7 {[%emt 0:00:12]} 17. Ne5 {[%emt 0:04:06]} Rac8 {[%emt 0:01:09]} 18. Nd3 {[%emt 0:02:31]} b5 {[%emt 0:04:36]} 19. Ne5 {[%emt 0:01:51]} bxc4 {[%emt 0:03:09]} 20. Nxc4 {[%emt 0:02:07]} Nd5 {[%emt 0:01:23]} 21. Rc1 {[%emt 0:01:29]} Bf6 {[%emt 0:00:40]} 22. Ne5 {[%emt 0:01:17]} Bxe5 {[%emt 0:01:09]} 23. Qxe5 {[%emt 0:01:36]} Qa5 {[%emt 0:01:23]} 24. Ra1 {[%emt 0:02:57]} Ba6 {[%emt 0:00:50]} 25. Red1 {[%emt 0:01:19]} Qb6 {[%emt 0:01:41]} 26. Rac1 {[%emt 0:01:40]} Bb5 {[%emt 0:01:11]} 27. Kh1 {[%emt 0:01:50]} a5 {[%emt 0:00:48]} 28. Ra1 {[%emt 0:05:02]} a4 {[%emt 0:00:33]} 29. b4 {[%emt 0:01:02]} Qc7 {[%emt 0:02:53]} 30. Qe1 {[%emt 0:02:09]} Nb6 {[%emt 0:02:24]} 31. a3 {[%emt 0:02:37]} Nc4 {[%emt 0:00:37]} 32. Bc3 {[%emt 0:00:58]} Rd7 {[%emt 0:01:07]} 33. f4 {[%emt 0:00:42]} Rcd8 {[%emt 0:00:16]} 34. Qg1 {[%emt 0:01:59]} Nd6 {[%emt 0:00:34]} 35. Ra2 {[%emt 0:01:58]} Bc4 {[%emt 0:00:32]} 36. Raa1 {[%emt 0:01:35]} Bb3 {[%emt 0:01:05]} 37. Rdc1 {[%emt 0:00:46]} Nb5 {[%emt 0:01:23]} 38. Bb2 {[%emt 0:00:22]} Bd5 {[%emt 0:00:47]} 39. Bxd5 {[%emt 0:00:42]} Rxd5 {[%emt 0:00:05]} 40. Rc4 {[%emt 0:01:02]} Qd7 {[%emt 0:00:12]} 41. Rac1 {[%emt 0:01:53]} Nxd4 {[%emt 0:00:34]} 42. Bxd4 {[%emt 0:00:51]} Rxd4 {[%emt 0:00:17]} 43. Rxd4 {[%emt 0:00:06]} Qxd4 {[%emt 0:00:05]} 44. Qxd4 {[%emt 0:00:08]} Rxd4 {[%emt 0:00:04]} 45. Rxc6 {[%emt 0:00:15]} Rd3 {[%emt 0:00:23]} 46. Ra6 {[%emt 0:00:25]} Rxa3 {[%emt 0:00:11]} 47. b5 {[%emt 0:00:06]} Rb3 {[%emt 0:00:56]} 48. Rxa4 {[%emt 0:00:11]} Rxb5 {[%emt 0:00:04]} 49. Ra2 {[%emt 0:00:38]} g5 {[%emt 0:00:56]} 50. Kg2 {[%emt 0:00:28]} Kg7 {[%emt 0:00:34]} 51. h3 {[%emt 0:00:28]} f6 {[%emt 0:00:54]} 52. Ra3 {[%emt 0:00:39]} e5 {[%emt 0:00:29]} 53. Kf3 {[%emt 0:01:20]} exf4 {[%emt 0:00:08]} 54. gxf4 {[%emt 0:01:22]} Rf5 {[%emt 0:00:02]} 55. Ra4 {[%emt 0:00:21]} Rxf4+ {[%emt 0:00:17]} 56. Rxf4 {[%emt 0:00:05]} gxf4 {[%emt 0:00:07]} 57. Kxf4 {[%emt 0:00:05]} Kg6 {[%emt 0:00:08]} 58. Kg4 {[%emt 0:01:37]} h5+ {[%emt 0:04:30]} 59. Kf4 {[%emt 0:00:11]} f5 {[%emt 0:01:15]} 60. Kf3 {[%emt 0:00:57]} h4 {[%emt 0:00:39]} 61. Kf4 {[%emt 0:00:55]} Kf6 {[%emt 0:00:04]} 62. Kf3 {[%emt 0:00:31]} Ke5 {[%emt 0:00:08]} 63. Ke3 {[%emt 0:00:03]} f4+ {[%emt 0:00:09]} 64. Kf3 {[%emt 0:00:35]} Kf5 {[%emt 0:00:06]} 65. Kf2 {[%emt 0:00:56]} Ke4 {[%emt 0:00:07]} 66. Ke2 {[%emt 0:00:16]} f3+ {[%emt 0:00:06]} 67. Kf2 {[%emt 0:00:03]} Kf4 {[%emt 0:00:04]} 68. Kf1 {[%emt 0:00:23]} Kg3 {[%emt 0:00:12]} 69. Kg1 {[%emt 0:00:04]} Kxh3 {[%emt 0:00:05]} 70. Kh1 {[%emt 0:00:06]} Kg3 {[%emt 0:00:05]} 71. Kg1 {[%emt 0:00:04]} f2+ {[%emt 0:00:10]} 72. Kf1 {[%emt 0:00:03]} h3 {[%emt 0:00:06]} 73. Ke2 {[%emt 0:00:03]} h2 {[%emt 0:43:15]} 0-1

[Event "2nd Namma Bengaluru Open-B 2025"]
[Site "Bengaluru"]
[Date "2025.04.11"]
[Round "5.5"]
[White "Lalit Ranjan Sahu"]
[Black "Narahari Geethika Hasini"]
[Result "0-1"]
[Annotator "NA"]
[ECO "B23"]
[WhiteElo "1750"]
[BlackElo "1856"]
[PlyCount "118"]
[EventDate "2025.04.10"]
[EventType "swiss"]
[EventCountry "IND"]
[SourceTitle "playchess.com"]
[Source "ChessBase"]
[SourceQuality "1"]
[TimeControl "3600+30"]

1. e4 {[%emt 0:00:47]} c5 {[%emt 1:01:00]} 2. Nc3 {[%emt 0:00:59]} e6 {[%emt 0:00:00]} 3. f4 {[%emt 0:00:19]} Nc6 {[%emt 0:00:00]} 4. Nf3 {[%emt 0:00:17]} d5 {[%emt 0:00:00]} 5. Bb5 {[%emt 0:00:25]} Nge7 {[%emt 0:00:00]} 6. d3 {[%emt 0:00:25]} a6 {[%emt 0:00:00]} 7. Bxc6+ {[%emt 0:00:05]} Nxc6 {[%emt 0:00:00]} 8. O-O {[%emt 0:00:18]} Be7 {[%emt 0:00:00]} 9. Qe1 {[%emt 0:01:24]} O-O {[%emt 0:00:00]} 10. Qf2 {[%emt 0:09:18]} b5 {[%emt 0:00:00]} 11. a4 {[%emt 0:01:01]} b4 {[%emt 0:00:00]} 12. Ne2 {[%emt 0:00:19]} f5 {[%emt 0:00:00]} 13. e5 {[%emt 0:01:50]} b3 {[%emt 0:00:00]} 14. c3 {[%emt 0:02:13]} d4 {[%emt 0:00:00]} 15. cxd4 {[%emt 0:05:07]} Nb4 {[%emt 0:00:00]} 16. Ne1 {[%emt 0:01:08]} cxd4 {[%emt 0:00:00]} 17. Qxd4 {[%emt 0:19:12]} Qxd4+ {[%emt 0:00:00]} 18. Nxd4 {[%emt 0:00:12]} Bc5 {[%emt 0:00:00]} 19. Be3 {[%emt 0:00:24]} Nd5 {[%emt 0:00:00]} 20. Bf2 {[%emt 0:00:41]} Nxf4 {[%emt 0:00:00]} 21. Nxb3 {[%emt 0:00:56]} Bxf2+ {[%emt 0:00:00]} 22. Rxf2 {[%emt 0:00:21]} g5 {[%emt 0:00:00]} 23. h4 {[%emt 0:04:06]} h6 {[%emt 0:00:00]} 24. hxg5 {[%emt 0:00:12]} hxg5 {[%emt 0:00:00]} 25. Nc5 {[%emt 0:00:32]} Rd8 {[%emt 0:00:00]} 26. Nf3 {[%emt 0:01:03]} Rd5 {[%emt 0:00:00]} 27. Rc1 {[%emt 0:07:04]} g4 {[%emt 0:00:00]} 28. Ne1 {[%emt 0:00:18]} Ng6 {[%emt 0:00:00]} 29. a5 {[%emt 0:02:17]} Rb8 {[%emt 0:00:00]} 30. Re2 {[%emt 0:10:09]} Rxe5 {[%emt 0:00:00]} 31. Rxe5 {[%emt 0:01:06]} Nxe5 {[%emt 0:00:00]} 32. d4 {[%emt 0:00:12]} Ng6 {[%emt 0:00:00]} 33. Ned3 {[%emt 0:00:07]} Kf7 {[%emt 0:00:26]} 34. Na4 {[%emt 0:01:09]} Ne7 {[%emt 0:03:53]} 35. Nb6 {[%emt 0:00:41]} Bb7 {[%emt 0:01:23]} 36. Rc7 {[%emt 0:00:15]} Be4 {[%emt 0:01:21]} 37. Nc5 {[%emt 0:00:01]} Rd8 {[%emt 0:03:27]} 38. Nxa6 {[%emt 0:00:19]} Rxd4 {[%emt 0:01:36]} 39. Nc8 {[%emt 0:00:11]} g3 {[%emt 0:00:24]} 40. Kf1 {[%emt 0:01:44]} Bd3+ {[%emt 0:00:19]} 41. Ke1 {[%emt 0:00:03]} Bxa6 {[%emt 0:00:07]} 42. Nxe7 {[%emt 0:00:07]} Kf6 {[%emt 0:01:43]} 43. Nc8 {[%emt 0:02:10]} Ra4 {[%emt 0:01:07]} 44. Nd6 {[%emt 0:00:31]} Rxa5 {[%emt 0:00:36]} 45. Ne8+ {[%emt 0:00:30]} Ke5 {[%emt 0:00:15]} 46. Kd2 {[%emt 0:00:23]} Rd5+ {[%emt 0:00:43]} 47. Kc3 {[%emt 0:00:36]} Rd8 {[%emt 0:01:20]} 48. Rc5+ {[%emt 0:00:06]} Rd5 {[%emt 0:01:35]} 49. Rc7 {[%emt 0:00:09]} Bb5 {[%emt 0:00:24]} 50. Ng7 {[%emt 0:01:16]} f4 {[%emt 0:03:04]} 51. Re7 {[%emt 0:00:31]} Kf6 {[%emt 0:00:17]} 52. Ra7 {[%emt 0:01:01]} f3 {[%emt 0:00:43]} 53. gxf3 {[%emt 0:00:00]} g2 {[%emt 0:00:08]} 54. Ne8+ {[%emt 0:00:08]} Bxe8 {[%emt 0:00:10]} 55. Ra1 {[%emt 0:00:04]} Bb5 {[%emt 0:00:12]} 56. Rg1 {[%emt 0:00:05]} Bf1 {[%emt 0:00:02]} 57. b4 {[%emt 0:00:11]} Kf5 {[%emt 0:00:06]} 58. b5 {[%emt 0:00:28]} Rxb5 {[%emt 0:00:06]} 59. Kd2 {[%emt 0:00:09]} Kf4 {[%emt 0:00:03]} 0-1

[Event "2nd Namma Bengaluru Open-B 2025"]
[Site "Bengaluru"]
[Date "2025.04.11"]
[Round "5.6"]
[White "Anushka Gupta"]
[Black "Abhijith U"]
[Result "1-0"]
[Annotator "NA"]
[ECO "C17"]
[WhiteElo "1739"]
[BlackElo "1821"]
[PlyCount "67"]
[EventDate "2025.04.10"]
[EventType "swiss"]
[EventCountry "IND"]
[SourceTitle "playchess.com"]
[Source "ChessBase"]
[SourceQuality "1"]
[TimeControl "3600+30"]

1. e4 {[%emt 0:00:03]} e6 {[%emt 0:01:32]} 2. d4 {[%emt 0:00:42]} d5 {[%emt 0:00:03]} 3. Nc3 {[%emt 0:00:13]} Bb4 {[%emt 0:04:48]} 4. e5 {[%emt 0:00:08]} c5 {[%emt 0:00:05]} 5. Bd2 {[%emt 0:00:04]} Ne7 {[%emt 0:04:01]} 6. Nb5 {[%emt 0:00:58]} Bxd2+ {[%emt 0:01:44]} 7. Qxd2 {[%emt 0:00:02]} O-O {[%emt 0:02:51]} 8. f4 {[%emt 0:00:49]} cxd4 {[%emt 0:07:04]} 9. Nf3 {[%emt 0:00:39]} Nbc6 {[%emt 0:06:54]} 10. Nbxd4 {[%emt 0:00:53]} Qb6 {[%emt 0:01:49]} 11. c3 {[%emt 0:01:32]} Bd7 {[%emt 0:03:03]} 12. Bd3 {[%emt 0:03:04]} Nxd4 {[%emt 0:01:14]} 13. Nxd4 {[%emt 0:00:37]} Nc6 {[%emt 0:02:31]} 14. Nxc6 {[%emt 0:00:54]} bxc6 {[%emt 0:04:46]} 15. O-O-O {[%emt 0:04:15]} Rab8 {[%emt 0:00:47]} 16. g4 {[%emt 0:00:58]} Qa5 {[%emt 0:04:20]} 17. Bb1 {[%emt 0:00:54]} Rb7 {[%emt 0:09:04]} 18. Qd3 {[%emt 0:02:00]} g6 {[%emt 0:00:32]} 19. h4 {[%emt 0:03:02]} Rfb8 {[%emt 0:01:33]} 20. Rd2 {[%emt 0:01:12]} c5 {[%emt 0:03:02]} 21. h5 {[%emt 0:02:08]} c4 {[%emt 0:03:55]} 22. Qh3 {[%emt 0:03:13]} g5 {[%emt 0:01:13]} 23. Rhh2 {[%emt 0:06:57]} Qa3 {[%emt 0:04:18]} 24. Qe3 {[%emt 0:03:15]} gxf4 {[%emt 0:00:08]} 25. Qd4 {[%emt 0:00:46]} Ba4 {[%emt 0:01:07]} 26. g5 {[%emt 0:01:05]} Kh8 {[%emt 0:00:24]} 27. g6 {[%emt 0:00:33]} Qe7 {[%emt 0:00:39]} 28. Qxf4 {[%emt 0:00:59]} Rg8 {[%emt 0:00:30]} 29. Rdf2 {[%emt 0:03:32]} Qc5 {[%emt 0:00:32]} 30. Qf6+ {[%emt 0:03:14]} Rg7 {[%emt 0:00:05]} 31. Qd8+ {[%emt 0:00:33]} Rg8 {[%emt 0:00:05]} 32. g7+ {[%emt 0:00:17]} Kxg7 {[%emt 0:00:04]} 33. Rfg2+ {[%emt 0:00:10]} Kh6 {[%emt 0:00:33]} 34. Qf6+ {[%emt 0:00:06]} 1-0